Cogmind - Beta 14 @@@ ROGUE MODE // 2024.09.20 @ 02:01:30 Player: Some Pennies Result: Destroyed by Y-54 Guardian with Gatling Laser Performance ------------- Evolutions (0) 0 Regions Visited (3) 600 Robots Destroyed (48) 240 Value Destroyed (1217) 1217 Prototype IDs (2) 40 Alien Tech Used (0) 0 Bonus (38) 38 TOTAL SCORE: 2135 Bonus ------- High Alert Combat Kills 11 Follower Combat Kills 27 Cogmind --------- Core Integrity 0/250 Matter 272/300 Energy 160/160 System Corruption 0% Temperature Cool (16) Movement Treading (160) Location -7/Recycling Parts ------- > --- POWER (1) -------- Light Nuclear Core > --- PROPULSION (2) --- Improved Treads Improved Treads > --- UTILITY (2) ------ Large Storage Unit Improved Terrain Scanner > --- WEAPON (2) ------- Autogun Heavy Battle Rifle > --- INVENTORY (15) --- Improved Treads Improved Treads Improved Heat Sink Medium Storage Unit High-capacity Matter Pod (200) Hardened Medium Armor Plating Improved Light Armor Plating Makeshift Light Armor Plating Hacking Suite Makeshift System Shield Makeshift System Shield Riot Gun Heavy Riot Gun Datajack Makeshift Hammer Peak State ------------ > --- POWER ------------ Subdweller Power Source > --- PROPULSION ------- Light Treads Spiked Treads > --- UTILITY ---------- Large Storage Unit Makeshift Light Armor Plating > --- WEAPON ----------- Heavy Battle Rifle Makeshift Hammer > --- INVENTORY -------- Improved Treads Improved Treads Improved Treads Improved Treads Improved Heat Sink Medium Storage Unit High-capacity Matter Pod Hacking Suite Makeshift System Shield Makeshift System Shield Riot Gun Heavy Riot Gun Subdweller Beam Cannon Autogun Datajack [Rating: 21] Favorites ----------- Power Subdweller Power Source Engine Subdweller Power Source Power Core Light Nuclear Core Propulsion Light Treads Treads Light Treads Utility Large Storage Unit Device Shield Generator Storage Large Storage Unit Protection Makeshift Light Armor Plating Weapon Subdweller Beam Cannon Energy Gun Subdweller Laser Energy Cannon Subdweller Beam Cannon Ballistic Gun Autogun Special Weapon Mining Laser Impact Weapon Makeshift Hammer Piercing Weapon Makeshift Spear Special Melee Weapon Datajack Build | -11 -10 -10 -7 ------- Run | Yrd Mat Sub Rec Slots Evolved . | . . . . Power . | . . . . Propulsion . | . . . . Utility . | . . . . Weapon . | . . . . Parts Attached 77 | 8 19 41 9 Power 6 | 1 2 2 1 Engine 4 | 1 1 2 . Core 2 | . 1 . 1 Reactor . | . . . . Propulsion 10 | 2 5 1 2 Treads 10 | 2 5 1 2 Leg . | . . . . Wheel . | . . . . Hover . | . . . . Flight . | . . . . Utility 11 | 3 3 4 1 Device 6 | 2 2 1 1 Storage 2 | 1 1 . . Processor . | . . . . Hackware . | . . . . Protection 3 | . . 3 . Artifact . | . . . . Weapon 50 | 2 9 34 5 Energy Gun 7 | . . 6 1 Energy Cannon 8 | . . 7 1 Ballistic Gun 17 | 2 7 6 2 Ballistic Cannon . | . . . . Launcher . | . . . . Special Weapon 5 | . 2 3 . Impact Weapon 11 | . . 11 . Slashing Weapon . | . . . . Piercing Weapon 1 | . . 1 . Special Melee Weapon 1 | . . . 1 Unidentified Prototypes . | . . . . Parts Lost 9 | . 3 2 4 Power 2 | . 1 . 1 Propulsion 3 | . 1 . 2 Utility 2 | . . 2 . Weapon 2 | . 1 . 1 Highest Loss Streak 4 | . 2 1 4 To Critical Strikes . | . . . . Average Slot Usage (%) 99 | . 99 99 93 Engine 13 | . 11 14 3 Treads 27 | . 27 28 27 Device 7 | . 14 5 9 Storage 14 | . 14 14 14 Protection 6 | . . 8 4 Energy Gun 3 | . . 3 . Energy Cannon 9 | . . 10 1 Ballistic Gun 10 | . 27 8 16 Impact Weapon 3 | . . 4 2 Peak Build Rating 21 | 7 12 21 21 Average Rating 15 | 6 10 16 17 On Entrance 10 | . 7 12 21 Naked Turns . | . . . . Heaviest Build 44 | 13 33 44 36 Greatest Support 46 | 40 40 40 46 Greatest Overweight (x) 1 | 1 1 1 . Average Overweight (x) . | . . . . Largest Inventory Capacity 15 | 8 15 15 15 Average Capacity 14 | 7 12 15 15 Most Carried 15 | 6 15 15 15 Average Carried 14 | 2 11 14 14 Final Capacity 15 | 8 15 15 15 Final Carried 15 | 5 15 15 15 Class Distribution -------------------- 83% | Mutant 14% | Derelict-Mutant Dominant Class ---------------- Mutant | -10/Materials Mutant | -10/Subcaves Commander-Mutant | -7/Recycling Resources | -11 -10 -10 -7 ----------- Run | Yrd Mat Sub Rec Matter Collected 1711 | 394 674 530 113 Remotely . | . . . . Salvage Created 1936 | 234 717 824 161 Parts 116 | 23 52 35 6 Haulers Intercepted 1 | . 1 . . Recyclers Shooed 3 | . . . 3 Parts Field Recycled . | . . . . Retrieved Matter . | . . . . Parts Self-Destructed 9 | . . 9 . Prevented . | . . . . Kills | -11 -10 -10 -7 ------- Run | Yrd Mat Sub Rec Combat Hostiles Destroyed 32 | . 15 14 3 Melee 1 | . . . 1 Guns 20 | . 15 3 2 Cannons 10 | . . 10 . Classes Destroyed 13 | 3 6 2 2 Worker 2 | 2 . . . Builder 1 | . 1 . . Tunneler 6 | 5 1 . . Hauler 1 | . 1 . . Recycler 3 | 1 2 . . Operator 1 | . 1 . . Watcher 2 | . 2 . . Swarmer 6 | . 6 . . Grunt 10 | . 9 1 . Protector 1 | . . . 1 Sentry 2 | . . . 2 Artisan 2 | . . 2 . Subdweller 13 | . . 13 . Best Kill Streak 7 | 3 7 3 2 Combat Bots Only 3 | . 3 3 2 Max Kills in Single Turn 2 | 2 2 1 1 Gunslinging . | . . . . Exploded . | . . . . Melee 1 | . . . 1 Uniques/NPCs Destroyed . | . . . . Combat | -11 -10 -10 -7 -------- Run | Yrd Mat Sub Rec Hostile Shots Fired 228 | . 66 51 111 Missed 67 | . 14 9 44 Damage Taken 2184 | . 579 1087 518 Core 255 | . 35 143 77 Absorbed by Shields 99 | . 18 81 . Ignored by Resistances 30 | . . 30 . Core Remaining (%) 100 | 100 . . . Volleys Fired 215 | 19 62 120 14 Largest 2 | 2 2 2 2 Hottest 160 | 40 100 160 113 Shots Fired 350 | 38 115 172 25 Gun 214 | 38 106 48 22 Cannon 90 | . . 87 3 Launcher . | . . . . Special 46 | . 9 37 . Kinetic 193 | 38 106 29 20 Thermal 155 | . 9 143 3 Explosive . | . . . . Electromagnetic 2 | . . . 2 Robot Hit Streak 20 | 4 15 20 9 Robot Miss Streak 4 | 3 4 4 3 Penetration Max . | . . . . Secondary Targets 4 | . 3 . 1 Max Gunslinging Chain 1 | . 1 . 1 Shots Hit Robots 203 | 22 67 80 34 Core Hits 80 | 9 37 24 10 Critical Kills 3 | . . 2 1 Critical Parts Destroyed . | . . . . Critical Strikes 3 | . . 2 1 Meltdown 1 | . . 1 . Destroy 1 | . . 1 . Smash 1 | . . . 1 Melee Attacks 131 | . . 115 16 Impact 118 | . . 115 3 Slashing . | . . . . Piercing . | . . . . Sneak Attacks 14 | . . . 14 Combat Hostiles 11 | . . . 11 Follow-up Attacks . | . . . . Damage Inflicted 3661 | 310 902 1885 564 Guns 2163 | 310 898 595 360 Cannons 1369 | . . 1290 79 Explosions . | . . . . Melee 125 | . . . 125 Ramming 4 | . 4 . . Kinetic 1806 | 310 898 274 324 Thermal 1690 | . . 1611 79 Explosive . | . . . . Electromagnetic 36 | . . . 36 Impact 125 | . . . 125 Slashing . | . . . . Piercing . | . . . . Highest Corruption . | . . . . Average Corruption . | . . . . Corruption Purged . | . . . . Corruption Blocked . | . . . . Overload Shots . | . . . . Overflow Damage 6 | . . . 6 Projectiles . | . . . . Explosions . | . . . . Melee 6 | . . . 6 Knockbacks . | . . . . Impact . | . . . . Kinetic . | . . . . Secondary . | . . . . Self-Inflicted Damage . | . . . . Shots . | . . . . Rammed 2 | . 2 . . Targets Rammed 2 | . 2 . . Kicked . | . . . . Crushed . | . . . . Highest Temperature 374 | . 82 374 303 Average Temperature 63 | . 21 53 155 Received Heat Transfer 945 | . 267 510 168 Effects 3 | . . 2 1 Interference 3 | . . 2 1 Siege Activations . | . . . . Robots Corrupted . | . . . . Combat Hostiles . | . . . . Parts Fried . | . . . . Impact Corruptions 1 | . . . 1 Robots Melted 1 | . . 1 . Combat Hostiles 1 | . . 1 . Parts Melted 7 | . . 7 . Heat Transferred 2250 | . . 2139 111 Parts Sabotaged . | . . . . Parts Stolen . | . . . . Parts Stripped . | . . . . Power Chain Reactions . | . . . . Alert | -11 -10 -10 -7 ------- Run | Yrd Mat Sub Rec Peak Influence 405 | 40 405 . 61 Initial 26 | . 26 . . Average 159 | 16 214 . 34 Maximum Alert Level 2 | . 2 . . Low Security (%) 45 | 100 22 . 100 Level 1 51 | . 72 . . Level 2 3 | . 4 . . Level 3 . | . . . . Level 4 . | . . . . Level 5 . | . . . . High Security . | . . . . Max Security . | . . . . Squads Dispatched 5 | . 5 . . Investigation 3 | . 3 . . Extermination . | . . . . Reinforcement 2 | . 2 . . Assault . | . . . . Garrison . | . . . . Intercept . | . . . . Searches Triggered . | . . . . Construction Impeded . | . . . . Haulers Reinforced . | . . . . Active Scanning Responses . | . . . . Cargo Convoy Interrupts . | . . . . Stealth | -11 -10 -10 -7 --------- Run | Yrd Mat Sub Rec Distress Signals 3 | . 1 . 2 Communications Jammed . | . . . . Distress Signals . | . . . . Times Spotted 42 | . 23 14 5 Peak Tracking Total 5 | . 5 2 4 Tactical Retreats 1 | . 1 . . Traps | -11 -10 -10 -7 ------- Run | Yrd Mat Sub Rec Traps Triggered 6 | . 2 4 . Indirectly . | . . . . Trap Hack Attempts . | . . . . Triggered . | . . . . Disarmed . | . . . . Reprogrammed . | . . . . Reused . | . . . . Traps Extracted . | . . . . Installed . | . . . . Triggered . | . . . . Machines | -11 -10 -10 -7 ---------- Run | Yrd Mat Sub Rec Machines Disabled 2 | . . 1 1 Max in Single Turn 1 | . . 1 . Machines Repaired . | . . . . Machines Dismantled . | . . . . Machines Sabotaged . | . . . . Overloaded Fab Kills . | . . . . Hacking | -11 -10 -10 -7 --------- Run | Yrd Mat Sub Rec Machines Accessed 9 | . 7 1 1 Terminals 6 | . 5 . 1 Fabricators . | . . . . Repair Stations . | . . . . Recycling Units 2 | . 2 . . Scanalyzers . | . . . . Garrison Access . | . . . . Total Hacks 30 | . 19 4 7 Successful 14 | . 6 4 4 Failed 15 | . 12 . 3 Catastrophic . | . . . . Database Lockouts 1 | . 1 . . Manual 24 | . 18 . 6 Terminals 22 | . 15 . 7 Fabricators . | . . . . Repair Stations . | . . . . Recycling Units 4 | . 4 . . Scanalyzers . | . . . . Garrison Access . | . . . . Terminal Hacks 7 | . 2 4 1 Record 4 | . . 4 . Robot Analysis 2 | . 2 . . Prototype ID Bank 1 | . . . 1 Fabricator Hacks . | . . . . Repair Station Hacks . | . . . . Recycling Unit Hacks 1 | . 1 . . Retrieve Components 1 | . 1 . . Scanalyzer . | . . . . Garrison Access Hacks . | . . . . Unauthorized Hacks 6 | . 3 . 3 Terminals 4 | . 1 . 3 Botnet 1 | . . . 1 Operators 1 | . . . 1 Skim 2 | . 1 . 1 Fabricators . | . . . . Repair Stations . | . . . . Recycling Units 2 | . 2 . . Tunnel 2 | . 2 . . Scanalyzers . | . . . . Garrison Access . | . . . . Data Cores Recovered . | . . . . Used . | . . . . Hacking Detections 7 | . 6 . 1 Full Trace Events . | . . . . Feedback Events . | . . . . Feedback Blocked . | . . . . Robot Schematics Acquired . | . . . . Robots Built . | . . . . Authchips . | . . . . Time . | . . . . Total Robot Build Rating . | . . . . Part Schematics Acquired . | . . . . Parts Built . | . . . . Authchips . | . . . . Time . | . . . . Total Part Build Rating . | . . . . Parts Repaired . | . . . . Time . | . . . . Parts Recycled . | . . . . Recycled Matter . | . . . . Retrieved Matter . | . . . . Retrieved Components 2 | . 2 . . Parts Scanalyzed . | . . . . Part Schematics Acquired . | . . . . Parts Damaged . | . . . . Bothacking | -11 -10 -10 -7 ------------ Run | Yrd Mat Sub Rec Used RIF Installer . | . . . . Robots Hacked . | . . . . Non-combat . | . . . . Combat . | . . . . Robot Hacks Applied . | . . . . Relay Couplers Released . | . . . . Fabnet Peak Effective % . | . . . . Robots Rewired 6 | . . . 6 Allies Hacked . | . . . . Hacks Repelled . | . . . . Allies | -11 -10 -10 -7 -------- Run | Yrd Mat Sub Rec Total Allies 6 | . . . 6 Largest Group 6 | . . . 6 Highest-Rated Group 94 | . . . 94 Highest-Rated Ally 34 | . . . 34 Total Orders . | . . . . Ally Attacks 5 | . . . 5 Total Damage 112 | . . . 112 Kills 1 | . . . 1 Allies Corrupted . | . . . . Allies Melted . | . . . . Intel | -11 -10 -10 -7 ------- Run | Yrd Mat Sub Rec Robot Analysis Total 2 | . 2 . . Derelict Logs Recovered 1 | . . 1 . Drone Launches . | . . . . Drone Recoveries . | . . . . Exploration | -11 -10 -10 -7 ------------- Run | Yrd Mat Sub Rec Turns Passed 9645 | 237 1227 7903 278 Spaces Moved 4746 | 108 595 3917 126 Core 10 | 10 . . . Treads 4736 | 98 595 3917 126 Legs . | . . . . Wheels . | . . . . Hover . | . . . . Flight . | . . . . Fastest Speed 50 | 50 160 160 160 Average Speed 179 | 151 160 183 160 Slowest Speed 250 | 160 240 250 160 Overloaded Moves . | . . . . Propulsion Burnouts . | . . . . Robots Hopped . | . . . . Cave-ins Triggered . | . . . . Exploration Rate (%) 50 | 10 71 98 21 Regions Visited 3 Branch Regions 2 Pre-discovered Areas 3 | . 2 1 . Known Exits Taken . | . . . . Unknown Exits Taken 3 | 1 1 1 . Scrap Searched 9 | . . 9 . Spaces Dug 77 | . 4 73 . Terrain Destroyed 84 | . 5 79 . Melee 57 | . . 57 . Projectile 27 | . 5 22 . AOE . | . . . . Terrain Rammed . | . . . . Walls Destroyed . | . . . . Machines Disabled . | . . . . Actions | -11 -10 -10 -7 --------- Run | Yrd Mat Sub Rec Total 5318 | 140 741 4269 168 Wait 77 | . 27 50 . Move 4743 | 107 594 3916 126 Hop . | . . . . Pick Up 39 | 5 21 10 3 Fast Attach 17 | 7 3 6 1 Attach 8 | . 2 3 3 Detach 1 | . . 1 . Swap 52 | 1 14 32 5 Drop 33 | 1 16 16 . Fire 215 | 19 62 120 14 Melee 131 | . . 115 16 Ram . | . . . . Kick . | . . . . Crush 2 | . 2 . . Escape Stasis . | . . . . Rewire . | . . . . Trap . | . . . . Miscellaneous . | . . . . Route ------- -11/Scrapyard -10/Materials (discovered 5 exits: [*Mat x3] / [*Min] / *Sub) -10/Subcaves (discovered 3 exits: [*Mat x2] / *Rec) -7/Recycling History --------- Turn | Location | Event 5 | -11/Scrapyard | Discovered new exit (range 16) 238 | -11/Scrapyard | Entered Materials 307 | -10/Materials | Build established: Mutant 640 | -10/Materials | Discovered new exit (range 5) 891 | -10/Materials | Discovered new exit (range 8) 1050 | -10/Materials | Central database locked down 1092 | -10/Materials | Discovered new exit (range 9) 1376 | -10/Materials | Discovered new exit (range 9) 1450 | -10/Materials | Discovered new exit (range 3) 1465 | -10/Materials | Entered Subcaves 1908 | -10/Subcaves | Learned location of Zion (-7) 1908 | -10/Subcaves | Met a Zionite searching for "candidates" 2008 | -10/Subcaves | Discovered new exit (range 16) 2139 | -10/Subcaves | Discovered new exit (range 10) 2469 | -10/Subcaves | Learned location of 1 exit from Materials 2473 | -10/Subcaves | A swath of the cavern ceiling suddenly collapsed 2671 | -10/Subcaves | Discovered new exit (range 12) 3292 | -10/Subcaves | A swath of the cavern ceiling suddenly collapsed 3870 | -10/Subcaves | Shifting Twisted Machinery released Battle Cannon 3870 | -10/Subcaves | Shifting Twisted Machinery released Mak. Thermal Plating 3884 | -10/Subcaves | Shifting Twisted Machinery released Riot Gun 3886 | -10/Subcaves | Shifting Twisted Machinery released Spk. Treads 4014 | -10/Subcaves | Shifting Twisted Machinery released Sub. Laser 4015 | -10/Subcaves | Shifting Twisted Machinery released Riot Gun 4515 | -10/Subcaves | Ambushed by Subdwellers from Twisted Machinery 6081 | -10/Subcaves | Core integrity fell below 50% 6647 | -10/Subcaves | Visited Clippyterm 6654 | -10/Subcaves | Learned Factory garrison access intel 8300 | -10/Subcaves | Build established: Derelict-Mutant 9368 | -10/Subcaves | Entered Recycling 9418 | -7/Recycling | Core integrity fell below 20% 9463 | -7/Recycling | Lost 4 parts (1p2n1w) 9646 | -7/Recycling | Destroyed by Y-54 Guardian with Gatling Laser Last Messages --------------- 09491_ Sneak attack on U-05 Engineer. 09491_ U-05 Engineer rewired. 09492_ R-06 Scavenger collects Lgt. Treads. 09496_ R-06 Scavenger collects Com. Wheel. 09510_ Sneak attack on A-02 Transporter. 09510_ A-02 Transporter rewired. 09511_ R-06 Scavenger collects Com. Wheel. 09518_ Sneak attack on R-06 Scavenger. 09518_ R-06 Scavenger rewired. 09537_ Acquired Hrd. Medium Armor Plating. 09554_ Acquired Lgt. Nuclear Core. 09555_ Acquired 10 matter. 09566_ U-05 Engineer lays Concrete. 09571_ U-05 Engineer builds a Wall. 09576_ U-05 Engineer lays Concrete. 09592_ U-05 Engineer builds a Wall. 09594_ U-05 Engineer lays Concrete. 09595_ U-05 Engineer builds a Wall. 09606_ U-05 Engineer lays Concrete. 09646_ Y-54 Guardian springs to life. Map ----- +----------------------------------------------------+ | ????????????????????????????????????##???????????? | | ????????????????????????????????????????????#????? | | ?????????????????????????????????????????????????? | | ??????????????????????#?????#????????????????????? | | ?????????????????????????#???????#????????#?##???? | | ???????????????????#??????#??????????????#??????#? | | ???????????????????????????##################????? | | ???????????????????????????# = [ %! #????? | | ??????????????????? ???#???# = % = #????? | | ???????????????????????###?# %%![ % % #?#??# | | ?????????????????????#????## ] % ] #????? | | ??????????????????????#????# % %!%! #????? | | ???????????????????????#??##########+#########???? | | ???????????????????????### # ##### ########### | | ???????????????????????# # | | ????????????????????#### # | | ????????????????????+ # | | ????????????????????# #######% ##%%%###### | | ????????????????????# ???#??## ###%%%#????? | | ????????????????????+ ??????## #######??#?? | | ????????????????????# ##??##?## # #?? ????? | | ???????????????????## ###???### # ##??"????? | | ???????????????????#Y ""##?#??# # #????? ??? | | ????????????"" ""#### Y"#????## # #????????? | | ?????????? ""?????## ####? ?????? | | ?????????? d@#?####?## #??????????? | | ?????????? ### ### ##??# #?#????????? | | ????????????#!!!????????# # #?## ##?????????? | | ??????????????????????###s# #?# #####+#???? | | ??????????#???????????# # ### # | | ????????????????? ?? ?# # / # | | ??????????????????????# aur ### # | | ??????????????????????# # #?# ####### # | | ??????????????????????# + #?#######?#?????? ? | | ??????????????????????# # #?????????????????? | | ????????????#??#??????# # #?????????????????? | | ??????????????????????# # #????#????????????? | | ??????????????????????# # #?????????????????? | | ??????????????????????# # #?????????????????? | | ??????????????????????##### #?????#?#?????????? | | ??????????????????????????## ###?#???????????????? | | ???????????????????????????###???????????????????? | | ?????????????????????????????????#???????????????? | | ????????????????????????????????????????? ???????? | | ?????????????????????????????????????????????????? | | ?????????????????????????????????????????????????? | | ?????????????????????????????????????????????????? | | ????????????????????#????????????????????????????? | | ?????????????????????????????????????????????????? | | ?????????????????????????????????????????????????? | +----------------------------------------------------+ Best States ------------- Heat Dissipation 39 Energy Generation 14 Energy Capacity 250 Matter Stores 300 Matter Capacity 300 Sight Range 16 Terrain Scan Range 16 Terrain Scan Density 10 Armor Coverage 150 Resistance: TH 10 Evasion (%) 40 Recoil Reduction 2 Item Schematics ----------------- None Robot Schematics ------------------ None Fabricated ------------ Nothing Alien Tech Used ----------------- None Achievements -------------- None Challenges ------------ None Game ------ Seed WeaponTargetCompactor Manual? 0 Play Time 00:40:25 Cumulative 326.7 hours Start 2024.09.20 @ 01:07:57 End 2024.09.20 @ 02:01:30 Sessions 1 Manual Loads 0 Difficulty Rogue Special Mode None Game No. 230 Rogue 225 Adventurer 5 Explorer 0 Win Type - Total 7 Types 4/0/3/0/0/0/0/0/0 Lore% 67 Gallery% 85 Achievement% 69 Wizard Run 0 Options --------- Layout 2 ASCII 0 Keyboard 0 Movement Mouse Keybinds 0 Fullscreen 2 Font 24/Smallcaps Map View 50x44 Zoom Use 0% Tactical HUD 1 Map Filters NONE Filters NONE Steam 1 RUN: 88614e3a-fd40-44c5-be60-0f6482235f06